bitfinex/quotes_BTCUSD_20250328
["timestamp","ask_amount","ask_price","bid_price","bid_amount"]
[1743125664474,0.0003026,87438.0,87437.0,0.14137068]
[1743125664673,0.0001694,87447.0,87446.0,0.00804104]
[1743125664863,0.0001694,87447.0,87446.0,0.12229868]
[1743125665063,0.0001694,87447.0,87446.0,0.35101068]
[1743125666352,0.0001694,87447.0,87446.0,0.35201068]
[1743125667380,0.0001694,87447.0,87446.0,0.36168772]
[1743125667580,0.0001694,87447.0,87446.0,0.36268772]
[1743125668326,0.0789694,87447.0,87446.0,0.23775304]
[1743125668526,0.0789694,87447.0,87446.0,0.012435]
[1743125668780,0.1435297,87447.0,87446.0,0.002]
[1743125668945,0.1435297,87447.0,87446.0,0.001]
[1743125669159,0.1435297,87447.0,87446.0,0.240147]
[1743125669361,0.1435297,87447.0,87446.0,0.25283995]
[1743125669560,0.1435297,87447.0,87446.0,0.24140495]
[1743125669985,0.1435297,87447.0,87446.0,0.24240495]
[1743125670676,0.0193297,87447.0,87446.0,0.36809759]
[1743125671190,0.0001694,87447.0,87446.0,0.36809759]
[1743125672742,0.002,87449.0,87448.0,0.25968285]
[1743125672743,4e-07,87449.0,87448.0,0.25968285]
[1743125672993,4e-07,87449.0,87448.0,0.37394049]
[1743125673202,4e-07,87449.0,87448.0,0.38557611]
[1743125673405,4e-07,87449.0,87448.0,0.76237611]
[1743125674057,4.4e-07,87450.0,87449.0,0.33097585]
[1743125674279,4.4e-07,87450.0,87449.0,0.59383349]
[1743125675762,4.4e-07,87450.0,87449.0,0.59883349]
[1743125676194,4.4e-07,87450.0,87449.0,0.67793349]
[1743125676405,4.4e-07,87450.0,87449.0,1.26613349]
[1743125676577,4.4e-07,87450.0,87449.0,1.30167088]
[1743125676936,4.4e-07,87450.0,87449.0,1.30767088]
[1743125677565,4.4e-07,87450.0,87449.0,1.30167088]
[1743125677969,4.4e-07,87450.0,87449.0,1.30267088]
[1743125678322,7.4e-07,87473.0,87472.0,0.245076]
[1743125678507,0.00013389,87473.0,87472.0,1.23733449]
[1743125678701,8.9e-07,87473.0,87472.0,1.53733449]
[1743125679301,8.9e-07,87479.0,87478.0,0.245059]
[1743125679622,8.9e-07,87479.0,87478.0,0.50267664]
[1743125680025,8.9e-07,87479.0,87478.0,0.35431664]
[1743125680995,8.9e-07,87479.0,87478.0,0.50291664]
[1743125681811,8.9e-07,87479.0,87478.0,0.50791664]
[1743125682439,8.9e-07,87479.0,87478.0,0.51391664]
[1743125685039,8.9e-07,87479.0,87478.0,0.36531664]
[1743125685201,8.9e-07,87479.0,87478.0,0.36031664]
[1743125685401,8.9e-07,87479.0,87478.0,0.35431664]
[1743125685607,8.9e-07,87479.0,87478.0,0.37699365]
[1743125685831,8.9e-07,87479.0,87478.0,0.38799365]
[1743125686303,8.9e-07,87479.0,87478.0,0.36531664]
[1743125691282,8.9e-07,87479.0,87478.0,0.36031664]
[1743125691518,8.9e-07,87479.0,87478.0,0.35831664]
[1743125692232,8.9e-07,87479.0,87478.0,0.35431664]
[1743125692676,8.9e-07,87479.0,87478.0,0.36031664]
[1743125692894,0.22862689,87479.0,87478.0,0.006]
[1743125693069,0.05683189,87479.0,87478.0,0.001]
[1743125693300,0.06487146,87479.0,87478.0,0.001]
[1743125693518,0.06487146,87479.0,87478.0,0.003]
[1743125693716,0.04540089,87479.0,87478.0,0.014431]
[1743125693961,8.9e-07,87479.0,87478.0,0.12868864]
[1743125694323,8.9e-07,87479.0,87478.0,0.13097483]
[1743125694578,8.9e-07,87479.0,87478.0,0.13131343]
[1743125696063,8.9e-07,87479.0,87478.0,0.15454356]
[1743125697585,8.9e-07,87479.0,87478.0,0.13131343]
[1743125700193,8.9e-07,87479.0,87478.0,0.12902724]
[1743125700605,8.9e-07,87479.0,87478.0,0.1313131]
[1743125701271,8.9e-07,87479.0,87478.0,0.12902724]
[1743125702867,8.9e-07,87479.0,87478.0,0.20991333]
[1743125704013,8.9e-07,87479.0,87478.0,0.20791333]
[1743125704332,8.9e-07,87479.0,87478.0,0.21191333]
[1743125704767,8.9e-07,87479.0,87478.0,0.13002724]
[1743125704990,8.9e-07,87479.0,87478.0,0.13231303]
[1743125705185,8.9e-07,87479.0,87478.0,0.13531303]
[1743125706586,0.00017019,87479.0,87478.0,0.13531303]
[1743125706785,0.00017019,87479.0,87478.0,0.15805534]
[1743125707341,0.00017019,87479.0,87478.0,0.13302724]
[1743125707544,0.00017019,87479.0,87478.0,0.13531306]
[1743125708855,0.00017019,87479.0,87478.0,0.13302724]
[1743125710417,0.00017019,87479.0,87478.0,0.13531307]
[1743125710619,0.00017019,87479.0,87478.0,0.13302724]
[1743125712160,0.00017019,87479.0,87478.0,0.13531305]
[1743125714619,0.00017019,87479.0,87478.0,0.18521305]
[1743125716362,0.00017019,87479.0,87478.0,0.1997539]
[1743125717303,0.00017019,87479.0,87478.0,0.2779539]
[1743125717513,0.00017019,87479.0,87478.0,0.27566809]
[1743125719270,0.05,87489.0,87488.0,0.240032]
[1743125719475,0.05,87489.0,87488.0,0.35428964]
[1743125720312,0.05,87489.0,87488.0,0.59007049]
[1743125720516,0.05,87489.0,87488.0,0.9526683]
[1743125720952,3e-07,87492.0,87491.0,0.345023]
[1743125721163,3e-07,87492.0,87491.0,0.55372149]
[1743125721808,3e-07,87492.0,87491.0,0.69944149]
[1743125722228,3e-07,87492.0,87491.0,0.99944149]
[1743125722768,3e-07,87492.0,87491.0,1.01144149]
[1743125723437,3e-07,87492.0,87491.0,0.89190064]
[1743125723849,3e-07,87492.0,87491.0,0.51200064]
[1743125724058,3e-07,87492.0,87491.0,0.36628064]
[1743125728171,3e-07,87492.0,87491.0,0.45932149]
[1743125729263,3e-07,87492.0,87491.0,0.50632149]
[1743125731085,3e-07,87492.0,87491.0,0.45932149]
[1743125731606,3e-07,87492.0,87491.0,0.36628064]
[1743125737588,3e-07,87492.0,87491.0,0.44288064]
[1743125738009,3e-07,87492.0,87491.0,0.49188064]
[1743125738870,3e-07,87492.0,87491.0,0.50642149]
[1743125739185,3e-07,87492.0,87491.0,0.51142149]
[1743125740248,3e-07,87492.0,87491.0,0.84559697]
[1743125740476,0.02,87506.0,87505.0,0.239985]
[1743125740628,0.0201331,87506.0,87505.0,0.35424264]
[1743125741545,0.0201331,87506.0,87505.0,0.38841812]
[1743125741781,0.0201331,87506.0,87505.0,0.39241812]
[1743125742821,0.0201331,87506.0,87505.0,0.39541812]
[1743125743053,0.0203024,87506.0,87505.0,0.39541812]
[1743125744387,0.0203024,87506.0,87505.0,0.4177762]
[1743125744708,0.0203024,87506.0,87505.0,0.51471705]
[1743125744917,0.0203024,87506.0,87505.0,0.56451705]
[1743125745326,0.0203024,87506.0,87505.0,0.86451705]
[1743125745545,0.0203024,87506.0,87505.0,0.86151705]
[1743125745750,0.0203024,87506.0,87505.0,0.86551705]
[1743125746369,0.0203024,87506.0,87505.0,0.86151705]
[1743125746568,0.0203024,87506.0,87505.0,0.85751705]
[1743125747013,0.0203024,87506.0,87505.0,0.86751705]
[1743125747425,0.0203024,87506.0,87505.0,0.85751705]
[1743125747953,7e-07,87509.0,87505.0,0.86351705]
[1743125748159,0.00044331,87509.0,87508.0,0.73433464]
[1743125748361,0.00044331,87509.0,87508.0,0.74887549]
[1743125749139,0.00044331,87509.0,87508.0,0.78805097]
[1743125749573,3.1e-07,87509.0,87508.0,0.89405097]
[1743125749991,7e-05,87522.0,87521.0,0.539941]
[1743125750193,0.0795,87552.0,87525.0,0.005]
[1743125750374,0.0795,87552.0,87525.0,0.66147298]
[1743125750579,0.0795,87552.0,87525.0,0.65918864]
[1743125751212,0.0795,87552.0,87525.0,0.67053485]
[1743125751842,0.0795,87552.0,87525.0,0.70471033]
[1743125753269,0.0795,87552.0,87525.0,0.69971033]
[1743125753483,0.0795,87552.0,87525.0,0.72025118]
[1743125753659,0.0795,87552.0,87525.0,0.87217118]
[1743125754306,0.0795,87552.0,87525.0,0.89498429]
[1743125754832,0.0795,87552.0,87525.0,0.88044344]
[1743125755241,0.0795,87552.0,87525.0,0.88112344]
[1743125756090,0.0781,87538.0,87525.0,0.88112344]
[1743125758904,0.0832,87545.0,87525.0,0.73452344]
[1743125759115,0.24578759,87540.0,87525.0,0.42317723]
[1743125759318,0.0466,87534.0,87525.0,0.40036412]
[1743125759449,0.1266,87533.0,87525.0,0.40036412]
[1743125760041,0.1266,87533.0,87525.0,0.39436412]
[1743125760444,0.1266,87533.0,87525.0,0.39936412]
[1743125761074,0.239922,87528.0,87525.0,0.04517548]
[1743125761273,0.0774693,87526.0,87525.0,0.05660048]
[1743125761522,0.10820556,87526.0,87525.0,0.05660048]
[1743125762068,0.10820556,87526.0,87525.0,0.05060048]
[1743125762481,0.10820556,87526.0,87525.0,0.009]
[1743125762682,0.10820556,87526.0,87525.0,0.004]
[1743125762888,0.10820556,87526.0,87525.0,0.002]
[1743125763092,0.10820556,87526.0,87525.0,0.003]
[1743125765286,0.11963056,87526.0,87525.0,0.003]
[1743125766362,0.10820556,87526.0,87525.0,0.014425]
[1743125767486,0.10820556,87526.0,87525.0,0.003]
[1743125767704,0.10820556,87526.0,87525.0,0.014425]
[1743125769981,0.10820556,87526.0,87525.0,0.242931]
[1743125770229,0.10820556,87526.0,87525.0,0.003]
[1743125770230,0.34813356,87526.0,87525.0,0.003]
[1743125772090,0.39513356,87526.0,87525.0,0.002]
[1743125772303,0.011425,87520.0,87514.0,0.23996]
[1743125772514,0.228521,87519.0,87514.0,0.35421764]
[1743125772704,0.228521,87519.0,87514.0,0.11425764]
[1743125772975,0.011425,87521.0,87516.0,0.011426]
[1743125773181,0.239941,87521.0,87516.0,0.239954]
[1743125773665,0.22853,87516.0,87509.0,0.239974]
[1743125773895,0.48572359,87524.0,87517.0,0.239951]
[1743125774143,0.317545,87520.0,87514.0,0.239958]
[1743125774350,0.317545,87520.0,87510.0,0.11425764]
[1743125774351,0.228525,87518.0,87510.0,0.11425764]
[1743125774559,0.011426,87515.0,87510.0,0.11425764]
[1743125774784,0.228534,87514.0,87510.0,0.11425764]
[1743125774990,0.011426,87515.0,87510.0,0.11425764]
[1743125775414,0.011426,87513.0,87510.0,0.11425764]
[1743125775625,0.011427,87512.0,87510.0,0.11425764]
[1743125775930,0.011427,87511.0,87510.0,0.11425764]
[1743125776350,0.011427,87511.0,87510.0,0.11525764]
[1743125776573,0.011426,87513.0,87510.0,0.11525764]
[1743125776960,0.011426,87513.0,87510.0,0.11425764]
[1743125777189,0.011426,87513.0,87510.0,0.11525764]
[1743125777582,0.04114331,87521.0,87515.0,0.22853]
[1743125777825,0.26317084,87521.0,87515.0,0.22853]
[1743125778003,0.239947,87519.0,87514.0,0.011426]
[1743125778206,0.011426,87518.0,87513.0,0.239961]
[1743125778411,0.011426,87516.0,87511.0,0.239967]
[1743125778617,0.228527,87517.0,87512.0,0.011427]
[1743125779257,0.228527,87517.0,87511.0,0.35422464]
[1743125779258,0.011426,87516.0,87511.0,0.35422464]
[1743125779644,0.239958,87515.0,87511.0,0.11425764]
[1743125779870,0.239958,87515.0,87512.0,0.001]
[1743125780491,0.239963,87513.0,87512.0,0.001]
[1743125780937,0.011426,87513.0,87512.0,0.001]
[1743125781418,0.011426,87513.0,87510.0,0.0003384]
[1743125781419,0.239963,87513.0,87510.0,0.0003384]
[1743125781640,0.011426,87513.0,87511.0,0.001]
[1743125781861,0.239958,87515.0,87511.0,0.001]
[1743125782077,0.011426,87514.0,87511.0,0.001]
[1743125782299,0.239963,87513.0,87510.0,0.0003384]
[1743125782933,0.239969,87511.0,87510.0,0.0003384]
[1743125785233,0.011427,87511.0,87510.0,0.0003384]
[1743125785669,0.011427,87512.0,87510.0,0.0003384]
[1743125786035,0.011427,87511.0,87510.0,0.0003384]
[1743125786193,0.239969,87511.0,87510.0,0.0003384]
[1743125787732,0.011427,87512.0,87510.0,0.0003384]
[1743125787955,0.239963,87513.0,87510.0,0.0003384]
[1743125789462,0.01791466,87517.0,87513.0,0.228536]
[1743125789681,0.228529,87516.0,87511.0,0.011427]
[1743125789911,0.011426,87515.0,87510.0,0.0117654]
[1743125790145,0.011426,87516.0,87511.0,0.011427]
[1743125790574,0.239958,87516.0,87511.0,0.011427]
[1743125790996,0.239958,87516.0,87510.0,0.0117654]
[1743125791213,0.228534,87514.0,87510.0,0.0003384]
[1743125792496,0.011426,87515.0,87510.0,0.0003384]
[1743125792691,0.228534,87514.0,87510.0,0.0003384]
[1743125792925,0.011426,87516.0,87510.0,0.2403094]
[1743125793127,0.01791466,87517.0,87512.0,0.228539]
[1743125793308,0.01791466,87517.0,87512.0,0.011427]
[1743125793463,0.25786966,87517.0,87511.0,0.011427]
[1743125793837,0.239936,87523.0,87517.0,0.011426]
[1743125794165,0.02271006,87524.0,87517.0,0.011426]
[1743125794166,0.02271006,87524.0,87518.0,0.12568364]
[1743125794340,0.011425,87523.0,87518.0,0.35420564]
[1743125794718,0.2401085,87522.0,87518.0,0.11425764]
[1743125795171,0.011425,87521.0,87518.0,0.11425764]
[1743125796954,0.011426,87519.0,87518.0,0.11425764]
[1743125797356,0.239947,87519.0,87518.0,0.11425764]
[1743125797550,0.228527,87517.0,87512.0,0.239966]
[1743125797867,0.011426,87518.0,87513.0,0.11425764]
[1743125798067,0.228527,87517.0,87513.0,0.11425764]
[1743125798508,0.011426,87518.0,87513.0,0.11425764]
[1743125798672,0.011426,87518.0,87514.0,0.228534]
[1743125798895,0.011426,87518.0,87515.0,0.11425764]
[1743125799232,0.239947,87519.0,87515.0,0.11425764]
[1743125799369,0.011425,87521.0,87515.0,0.11425764]
[1743125799943,0.239944,87521.0,87515.0,0.11425764]
[1743125800143,0.011425,87520.0,87515.0,0.11425764]
[1743125800475,0.239946,87520.0,87515.0,0.11425764]
[1743125801882,0.25802298,87522.0,87517.0,0.228525]
[1743125802085,0.239944,87521.0,87515.0,0.35421464]
[1743125802796,0.011425,87521.0,87515.0,0.35421464]
[1743125803538,0.01808398,87522.0,87517.0,0.228526]
[1743125803744,0.0001695,87522.0,87521.0,0.239941]
[1743125804012,0.0001695,87522.0,87521.0,0.35419864]
[1743125804513,0.0001695,87522.0,87521.0,0.40179864]
[1743125805614,0.0001695,87522.0,87521.0,0.40379864]
[1743125806062,0.0001695,87522.0,87521.0,0.40479864]
[1743125806262,0.0001695,87522.0,87521.0,0.40379864]
[1743125806484,0.0001695,87522.0,87521.0,0.40479864]
[1743125814817,0.0001695,87522.0,87521.0,0.40513764]
[1743125815033,0.0001695,87522.0,87521.0,0.11759664]
[1743125815253,0.0115945,87522.0,87521.0,0.003339]
[1743125815667,0.0001695,87522.0,87521.0,0.003339]
[1743125815880,0.0001695,87522.0,87521.0,0.014764]
[1743125816294,0.0001695,87522.0,87521.0,0.013764]
[1743125816924,0.0001695,87522.0,87521.0,0.12602164]
[1743125819257,0.0001695,87522.0,87521.0,0.11459664]
[1743125819696,0.0001695,87522.0,87521.0,0.12602164]
[1743125820418,0.0001695,87522.0,87521.0,0.000339]
[1743125820878,0.2401075,87522.0,87521.0,0.000339]
[1743125821530,0.2861075,87522.0,87521.0,0.000339]
[1743125824437,0.30951381,87522.0,87521.0,0.000339]
[1743125825622,0.06957581,87522.0,87521.0,0.000339]
[1743125827889,0.08100081,87522.0,87521.0,0.000339]
[1743125832494,0.38100081,87522.0,87521.0,0.000339]
[1743125840230,0.3989154,87522.0,87521.0,0.000339]
[1743125840450,0.59337304,87522.0,87521.0,0.000339]
[1743125840707,0.4922754,87522.0,87521.0,0.000339]
[1743125842567,0.4942754,87522.0,87521.0,0.000339]
[1743125842776,0.4952754,87522.0,87521.0,0.000339]
[1743125843208,0.4922754,87522.0,87521.0,0.000339]
[1743125843391,0.4942754,87522.0,87521.0,0.000339]
[1743125843592,0.4970354,87522.0,87521.0,0.000339]
[1743125843887,0.47912081,87522.0,87521.0,0.000339]
[1743125848298,0.49703566,87522.0,87521.0,0.000339]
[1743125849829,0.35791566,87522.0,87521.0,0.000339]
[1743125850052,0.04649066,87522.0,87521.0,0.000339]
[1743125850268,0.0051695,87522.0,87521.0,0.24028]
[1743125850480,0.0051695,87522.0,87521.0,0.28828]
[1743125850965,0.0021695,87522.0,87521.0,0.28828]
[1743125851384,0.0041695,87522.0,87521.0,0.28828]
[1743125851776,0.0021695,87522.0,87521.0,0.26828]
[1743125852205,0.0041695,87522.0,87521.0,0.26828]
[1743125852415,0.0041695,87522.0,87521.0,0.38253764]
[1743125853436,0.0001695,87522.0,87521.0,0.38253764]
[1743125853861,0.0011695,87522.0,87521.0,0.38253764]
[1743125855291,0.0001695,87522.0,87521.0,0.38253764]
[1743125857517,0.2286825,87522.0,87521.0,0.049]
[1743125857752,0.25922377,87522.0,87521.0,0.001]
[1743125857968,0.27064877,87522.0,87521.0,0.001]
[1743125861946,0.27064877,87522.0,87521.0,0.001339]
[1743125862102,0.40840877,87522.0,87521.0,0.001339]
[1743125863603,0.40840877,87522.0,87521.0,0.000339]
[1743125863840,0.41140877,87522.0,87521.0,0.000339]
[1743125864155,0.41340877,87522.0,87521.0,0.000339]
[1743125865420,0.41304877,87522.0,87521.0,0.000339]
[1743125865642,0.71304877,87522.0,87521.0,0.000339]
[1743125865850,1.5288389,87522.0,87521.0,0.000339]
[1743125866966,1.5238389,87522.0,87521.0,0.000339]
[1743125867135,1.5268389,87522.0,87521.0,0.000339]
[1743125867713,1.5288389,87522.0,87521.0,0.000339]
[1743125869163,1.96411488,87522.0,87521.0,0.000339]
[1743125870795,1.43678088,87522.0,87521.0,0.000339]
[1743125870998,3.80191788,87522.0,87521.0,0.000339]
[1743125871460,2.54164288,87522.0,87521.0,0.000339]
[1743125871677,2.50564288,87522.0,87521.0,0.000339]
[1743125871886,1.96772724,87522.0,87521.0,0.000339]
[1743125872096,1.84201024,87522.0,87521.0,0.000339]
[1743125872312,1.91851024,87522.0,87521.0,0.000339]
[1743125873473,1.91651024,87522.0,87521.0,0.000339]
[1743125873852,2.01385195,87522.0,87521.0,0.000339]
[1743125874274,2.01885195,87522.0,87521.0,0.000339]
[1743125874698,2.04804814,87522.0,87521.0,0.000339]
[1743125875153,1.90395431,87522.0,87521.0,0.000339]
[1743125875364,2.30138231,87522.0,87521.0,0.000339]
[1743125875519,1.58005431,87522.0,87521.0,0.000339]
[1743125876571,1.57105431,87522.0,87521.0,0.000339]
[1743125876965,1.57605431,87522.0,87521.0,0.000339]
[1743125877194,1.58105431,87522.0,87521.0,0.001339]
[1743125877634,1.58089431,87522.0,87521.0,0.001339]
[1743125878246,1.5988104,87522.0,87521.0,0.001339]
[1743125878868,1.62362334,87522.0,87521.0,0.001339]
[1743125881813,1.62862334,87522.0,87521.0,0.001339]
[1743125882450,1.62818334,87522.0,87521.0,0.001339]
[1743125883796,1.68556725,87522.0,87521.0,0.001339]
[1743125884176,1.73296725,87522.0,87521.0,0.001339]
[1743125884376,1.76853171,87522.0,87521.0,0.001339]
[1743125884975,1.76353171,87522.0,87521.0,0.000339]
[1743125885780,1.75853171,87522.0,87521.0,0.000339]
[1743125885986,1.59616487,87522.0,87521.0,0.000339]
[1743125886217,1.73196487,87522.0,87521.0,0.000339]
[1743125886436,1.56699431,87522.0,87521.0,0.000339]
[1743125886678,1.70775431,87522.0,87521.0,0.000339]
[1743125887123,1.70275431,87522.0,87521.0,0.000339]
[1743125887349,3.20926931,87522.0,87521.0,0.000339]
[1743125887568,1.24310646,87522.0,87521.0,0.000339]
[1743125887804,1.24314646,87522.0,87521.0,0.000339]
[1743125888439,1.39881346,87522.0,87521.0,0.000339]
[1743125888638,0.45307082,87522.0,87521.0,0.000339]
[1743125888854,0.58899082,87522.0,87521.0,0.000339]
[1743125889061,0.17663077,87522.0,87521.0,0.081339]
[1743125889712,0.16663077,87522.0,87521.0,0.081339]
[1743125889924,0.16659077,87522.0,87521.0,0.081339]
[1743125890145,0.18797577,87522.0,87521.0,0.081339]
[1743125890437,0.03571077,87522.0,87521.0,0.081339]
[1743125890857,0.17151077,87522.0,87521.0,0.081339]
[1743125891179,0.17547077,87522.0,87521.0,0.081339]
[1743125891397,0.17543077,87522.0,87521.0,0.081339]
[1743125892214,0.03971077,87522.0,87521.0,0.081339]
[1743125892411,0.17535077,87522.0,87521.0,0.081339]
[1743125892610,0.03971077,87522.0,87521.0,0.081339]
[1743125892868,0.17531077,87522.0,87521.0,0.081339]
[1743125893101,0.18673577,87522.0,87521.0,0.081339]
[1743125893597,0.41524877,87522.0,87521.0,0.081339]
[1743125894329,0.41524877,87522.0,87521.0,0.000339]
[1743125897396,0.17531077,87522.0,87521.0,0.000339]
[1743125897577,0.41524877,87522.0,87521.0,0.000339]
[1743125897777,0.17531077,87522.0,87521.0,0.000339]
[1743125897996,0.03971077,87522.0,87521.0,0.24028]
[1743125898212,0.03971077,87522.0,87521.0,0.000339]
[1743125898630,0.27964877,87522.0,87521.0,0.000339]
[1743125899027,0.27464877,87522.0,87521.0,0.000339]
[1743125899441,0.39090641,87522.0,87521.0,0.000339]
[1743125899647,0.27664877,87522.0,87521.0,0.000339]
[1743125900195,0.27264877,87522.0,87521.0,0.000339]
[1743125900740,0.27364877,87522.0,87521.0,0.000339]
[1743125901848,0.03371077,87522.0,87521.0,0.000339]
[1743125902044,0.26222377,87522.0,87521.0,0.000339]
[1743125902260,0.27364877,87522.0,87521.0,0.000339]
[1743125902661,0.03371077,87522.0,87521.0,0.000339]
[1743125903021,0.04513577,87522.0,87521.0,0.000339]
[1743125904594,0.03371077,87522.0,87521.0,0.000339]
[1743125904811,0.03371077,87522.0,87521.0,0.011764]
[1743125905020,0.03371077,87522.0,87521.0,0.000339]
[1743125905226,0.04513577,87522.0,87521.0,0.000339]
[1743125905439,0.03371077,87522.0,87521.0,0.000339]
[1743125907115,0.04513577,87522.0,87521.0,0.000339]
[1743125907838,0.03371077,87522.0,87521.0,0.000339]
[1743125909093,0.03371077,87522.0,87521.0,0.228855]
[1743125909448,0.03371077,87522.0,87521.0,0.000339]
[1743125914849,0.03371077,87522.0,87521.0,0.081739]
[1743125919076,0.04513577,87522.0,87521.0,0.081739]
[1743125919497,0.04513577,87522.0,87521.0,0.000339]
[1743125927057,0.03371077,87522.0,87521.0,0.228855]
[1743125927173,0.03371077,87522.0,87521.0,0.000339]
[1743125939409,0.04513577,87522.0,87521.0,0.000339]
[1743125943098,0.15939341,87522.0,87521.0,0.000339]
[1743125943313,0.12543577,87522.0,87521.0,0.000339]
[1743125943669,0.42543577,87522.0,87521.0,0.000339]
[1743125946633,0.47917577,87522.0,87521.0,0.000339]
[1743125946828,0.34513577,87522.0,87521.0,0.000339]
[1743125947080,0.47909577,87522.0,87521.0,0.000339]
[1743125947869,0.50962473,87522.0,87521.0,0.000339]
[1743125949270,0.06423973,87522.0,87521.0,0.000339]
[1743125949518,0.07566473,87522.0,87521.0,0.000339]
[1743125952370,0.20934473,87522.0,87521.0,0.000339]
[1743125953681,1.36346873,87522.0,87521.0,0.000339]
[1743125953896,0.20934473,87522.0,87521.0,0.000339]
[1743125954129,0.42457173,87522.0,87521.0,0.000339]
[1743125955361,0.20934473,87522.0,87521.0,0.000339]
[1743125955503,0.47943973,87522.0,87521.0,0.000339]
[1743125958133,0.59369737,87522.0,87521.0,0.000339]
[1743125958541,0.6116129,87522.0,87521.0,0.000339]
[1743125959393,0.93670765,87522.0,87521.0,0.000339]
[1743125961058,0.9116129,87522.0,87521.0,0.000339]
[1743125963649,0.6415179,87522.0,87521.0,0.000339]
[1743125963874,0.37566473,87522.0,87521.0,0.000339]
[1743125964071,0.50910473,87522.0,87521.0,0.000339]
[1743125966775,0.52701995,87522.0,87521.0,0.000339]
[1743125967533,0.39357995,87522.0,87521.0,0.000339]
[1743125967764,0.52689995,87522.0,87521.0,0.000339]
[1743125968184,0.39357995,87522.0,87521.0,0.000339]
[1743125968393,0.19751973,87522.0,87521.0,0.081339]
[1743125969408,0.06423973,87522.0,87521.0,0.092764]
[1743125970750,0.06423973,87522.0,87521.0,0.081339]
[1743125972565,0.07566473,87522.0,87521.0,0.000339]
[1743125977764,0.14255684,87522.0,87521.0,0.000339]
[1743125977975,0.07566473,87522.0,87521.0,0.000339]
[1743125978190,0.09357871,87522.0,87521.0,0.000339]
[1743125979180,0.22625871,87522.0,87521.0,0.000339]
[1743125980611,0.41067871,87522.0,87521.0,0.000339]
[1743125983814,0.39276473,87522.0,87521.0,0.000339]
[1743125984455,0.69276473,87522.0,87521.0,0.000339]
[1743125985498,1.48930873,87522.0,87521.0,0.000339]
[1743125986040,1.07700373,87522.0,87521.0,0.000339]
[1743125986221,0.50834473,87522.0,87521.0,0.000339]
[1743125986844,0.50802473,87522.0,87521.0,0.000339]
[1743125987176,0.50806473,87522.0,87521.0,0.000339]
[1743125990207,0.50806473,87522.0,87521.0,0.228855]
[1743125990208,0.06423973,87522.0,87521.0,0.228855]
[1743125990422,0.06423973,87522.0,87521.0,0.24028]
[1743125990623,0.06423973,87522.0,87521.0,0.37058]
[1743125991532,0.06323973,87522.0,87521.0,0.48483764]
[1743125991923,0.06123973,87522.0,87521.0,0.48483764]
[1743125992482,0.06123973,87522.0,87521.0,0.49553265]
[1743125996645,0.06123973,87522.0,87521.0,0.50694511]
[1743125997543,0.06123973,87522.0,87521.0,0.50894511]
[1743125997940,0.06123973,87522.0,87521.0,0.50994511]
[1743125998184,0.06123973,87522.0,87521.0,0.50694511]
[1743125998589,0.06123973,87522.0,87521.0,0.52448596]
[1743125998841,0.01123973,87522.0,87521.0,0.82448596]
[1743125999749,0.01140923,87522.0,87521.0,0.82648596]
[1743126000096,0.01140923,87522.0,87521.0,0.82448596]
[1743126000502,0.05,87533.0,87532.0,0.239911]
[1743126000805,0.050133,87533.0,87532.0,0.91388864]
[1743126001004,2e-07,87535.0,87534.0,0.036424]
[1743126001206,2e-07,87535.0,87534.0,0.58406579]
[1743126001394,2e-07,87539.0,87538.0,0.695995]
[1743126001593,2e-07,87539.0,87538.0,0.81025264]
[1743126003021,2e-07,87539.0,87538.0,0.78525264]
[1743126003596,2e-07,87539.0,87538.0,0.81025264]
[1743126004008,2e-07,87539.0,87538.0,0.81900475]
[1743126004341,0.05,87556.0,87555.0,0.322048]
[1743126004643,0.05,87556.0,87555.0,0.61634564]
[1743126005873,0.05,87556.0,87555.0,0.61834564]
[1743126006238,0.05,87556.0,87555.0,0.61634564]
[1743126006597,0.05,87556.0,87555.0,0.92034564]
[1743126006951,0.05,87556.0,87555.0,0.92534564]
[1743126007379,0.05,87556.0,87555.0,0.92034564]
[1743126007863,0.05,87556.0,87555.0,0.92634564]
[1743126008242,0.05,87556.0,87555.0,0.93704065]
[1743126008440,0.05,87556.0,87555.0,0.93304065]
[1743126008847,0.05,87556.0,87555.0,0.93804065]
[1743126009052,0.05,87556.0,87555.0,0.96033716]
[1743126011738,0.0501695,87556.0,87555.0,0.82849716]
[1743126011941,0.0501695,87556.0,87555.0,0.96037716]
[1743126012142,0.0501695,87556.0,87555.0,0.82849716]
[1743126012504,0.0501695,87556.0,87555.0,0.93808065]
[1743126012703,0.0501695,87556.0,87555.0,0.80620065]
[1743126012902,0.0501695,87556.0,87555.0,0.93808065]
[1743126014100,0.0501695,87556.0,87555.0,0.92738564]
[1743126017932,0.0501695,87556.0,87555.0,0.93796917]
[1743126018353,0.0501695,87556.0,87555.0,0.93772917]
[1743126022603,0.0501695,87556.0,87555.0,0.13584117]
[1743126022833,0.0501695,87556.0,87555.0,0.37568917]
[1743126023519,0.0501695,87556.0,87555.0,0.37068917]
[1743126023754,0.0501695,87556.0,87555.0,0.36010564]
[1743126023983,0.0501695,87556.0,87555.0,0.36310564]
[1743126024431,0.0501695,87556.0,87555.0,0.13467864]
[1743126024681,0.0501695,87556.0,87555.0,0.11725764]
[1743126025097,0.0501695,87556.0,87555.0,0.35068464]
[1743126025335,0.0501695,87556.0,87555.0,0.36210564]
[1743126034847,0.0501695,87556.0,87555.0,0.008]
[1743126035070,0.3653155,87556.0,87555.0,0.008]
[1743126035924,0.3653155,87556.0,87555.0,0.003]
[1743126036139,0.1368905,87556.0,87555.0,0.003]
[1743126036341,0.1368905,87556.0,87551.0,0.239859]
[1743126036552,0.0501695,87556.0,87555.0,0.012421]
[1743126036757,0.0501695,87556.0,87555.0,0.35510564]
[1743126037173,0.0501695,87556.0,87555.0,0.35810564]
[1743126037380,0.0501695,87556.0,87555.0,0.43740564]
[1743126037738,0.0501695,87556.0,87555.0,0.78660564]
[1743126038642,0.0501695,87556.0,87555.0,0.78560564]
[1743126038862,0.0615905,87556.0,87555.0,0.003]
[1743126039274,0.0831833,87556.0,87542.0,0.239884]
[1743126039452,0.011422,87549.0,87543.0,0.11425764]
[1743126039696,0.22844,87550.0,87543.0,0.11425764]
[1743126039907,0.239878,87544.0,87543.0,0.11425764]
[1743126041238,0.011422,87545.0,87543.0,0.11425764]
[1743126041718,0.239878,87544.0,87543.0,0.11725764]
[1743126042275,0.239878,87544.0,87543.0,0.11425764]
[1743126042480,0.239878,87544.0,87543.0,0.11725764]
[1743126042685,0.239878,87544.0,87543.0,0.11925764]